Workbook

Sheet Sheet1
A1: 尚书府一、二期外遮阳复合卷帘工程量清单
A2: 序号 | B2: 楼栋 | C2: 方位 | D2: 窗户型号 | E2: 窗户规格（mm） | H2: 数量 | I2: 面积(㎡) | J2: 面积合计(㎡)
A3: 1 | B3: 1# | C3: 南立面 | D3: TC1815 | E3: 1750 | F3: * | G3: 1450 | H3: =6*6 -> 36 | I3: =E3*G3*H3/1000000 -> 91.35 | J3: =I3+I4 -> 129.20
D4: TC1515 | E4: 1450 | F4: * | G4: 1450 | H4: =3*6 -> 18 | I4: =E4*G4*H4/1000000 -> 37.85
A5: 2 | B5: 2# | C5: 南立面 | D5: TC1816 | E5: 1750 | F5: * | G5: 1550 | H5: =5+6*7 -> 47 | I5: =E5*G5*H5/1000000 -> 127.49 | J5: 181.43
D6: TC1516 | E6: 1450 | F6: * | G6: 1550 | H6: =3*8 -> 24 | I6: 53.94
A7: 3 | B7: 3# | C7: 南立面 | D7: TC1815 | E7: 1750 | F7: * | G7: 1450 | H7: =6*8 -> 48 | I7: 121.80 | J7: 172.26
D8: TC1515 | E8: 1450 | F8: * | G8: 1450 | H8: =3*8 -> 24 | I8: 50.46
A9: 4 | B9: 5# | C9: 南立面 | D9: TC1816 | E9: 1750 | F9: * | G9: 1550 | H9: =6*9 -> 54 | I9: 146.48 | J9: =I9+I10 -> 207.16
D10: TC1516 | E10: 1450 | F10: * | G10: 1550 | H10: =3*9 -> 27 | I10: 60.68
A11: 5 | B11: 6# | C11: 东西立面 | D11: LC0914 | E11: 850 | F11: * | G11: 1350 | H11: =2*18 -> 36 | I11: 41.31 | J11: =I11+I12+I13 -> 398.43
C12: 南立面 | D12: TC1816 | E12: 1750 | F12: * | G12: 1550 | H12: =4*18 -> 72 | I12: 195.30
D13: TC1516 | E13: 1450 | F13: * | G13: 1550 | H13: 72 | I13: 161.82
A14: 5 | B14: 8# | C14: 东西立面 | D14: LC0914 | E14: 850 | F14: * | G14: 1350 | H14: =2*18 -> 36 | I14: 41.31 | J14: =I14+I15+I16 -> 398.43
C15: 南立面 | D15: TC1816 | E15: 1750 | F15: * | G15: 1550 | H15: 72 | I15: 195.30
D16: TC1516 | E16: 1450 | F16: * | G16: 1550 | H16: 72 | I16: 161.82
A17: 7 | B17: 9# | C17: 南立面 | D17: TC1815 | E17: 1750 | F17: * | G17: 1450 | H17: =6*9 -> 54 | I17: 137.03 | J17: =I17+I18 -> 193.79
D18: TC1515 | E18: 1450 | F18: * | G18: 1450 | H18: =3*9 -> 27 | I18: 56.77
A19: 8 | B19: 10# | C19: 南立面 | D19: TC1815 | E19: 1750 | F19: * | G19: 1450 | H19: =4*8 -> 32 | I19: 81.20 | J19: =I19+I20 -> 114.84
D20: TC1515 | E20: 1450 | F20: * | G20: 1450 | H20: =2*8 -> 16 | I20: 33.64
A21: 9 | B21: 11# | C21: 南立面 | D21: TC1816 | E21: 1750 | F21: * | G21: 1550 | H21: =6*8 -> 48 | I21: 130.20 | J21: 184.14
D22: TC1516 | E22: 1450 | F22: * | G22: 1550 | H22: =3*8 -> 24 | I22: 53.94
A23: 10 | B23: 12# | C23: 南立面 | D23: TC1815 | E23: 1750 | F23: * | G23: 1450 | H23: =6*6 -> 36 | I23: 91.35 | J23: 129.20
D24: TC1515 | E24: 1450 | F24: * | G24: 1450 | H24: =3*6 -> 18 | I24: 37.85
A25: 11 | B25: 13# | C25: 南立面 | D25: TC1815 | E25: 1750 | F25: * | G25: 1450 | H25: =6*7 -> 42 | I25: 106.58 | J25: =I25+I26 -> 150.73
D26: TC1515 | E26: 1450 | F26: * | G26: 1450 | H26: =3*7 -> 21 | I26: 44.15
A27: 12 | B27: 15# | C27: 南立面 | D27: TC1815 | E27: 1750 | F27: * | G27: 1450 | H27: =6*9 -> 54 | I27: 137.03 | J27: 193.79
D28: TC1515 | E28: 1450 | F28: * | G28: 1450 | H28: =3*9 -> 27 | I28: 56.77
A29: 13 | B29: 21# | C29: 南立面 | D29: TC1816 | E29: 1750 | F29: * | G29: 1550 | H29: =5+6*8 -> 53 | I29: 143.76 | J29: 202.20
D30: TC1516 | E30: 1450 | F30: * | G30: 1550 | H30: =2+3*8 -> 26 | I30: 58.44
A31: 14 | B31: 22# | C31: 南立面 | D31: TC1815 | E31: 1750 | F31: * | G31: 1450 | H31: =6*7 -> 42 | I31: 106.58 | J31: =I31+I32 -> 150.73
D32: TC1515 | E32: 1450 | F32: * | G32: 1450 | H32: =3*7 -> 21 | I32: 44.15
A33: 合计 | H33: =SUM(H3:H32) -> 1179 | I33: =SUM(J3:J32) -> 2806.31
